lending/lending_fUSD_20260306
["ID","MTS","AMOUNT","RATE_DAILY","PERIOD"]
[407768308,1772783440597,-400.0,0.00019178,30]
[407768309,1772783440606,-801.85129955,0.00019197,2]
[407768310,1772783440615,-2000.0,0.000192,2]
[407768311,1772783440625,-154.34,0.0001922,2]
[407768312,1772783440636,-151.0,0.00019224,2]
[407768313,1772783440645,-500.0,0.00019225,2]
[407768314,1772783440654,-494.64624274,0.00019225,2]
[407768315,1772783440664,-686.30743447,0.00019246,2]
[407768316,1772783440673,-831.51979763,0.00019252,2]
[407768317,1772783440682,-1000.0,0.00019294,2]
[407768318,1772783440692,-152.0,0.00019305,4]
[407768319,1772783440701,-862.28603014,0.00019307,2]
[407768320,1772783440711,-151.0,0.00019335,2]
[407768321,1772783440720,-725.18,0.00019353,2]
[407768322,1772783440730,-894.19061326,0.00019362,2]
[407768323,1772783440739,-1254.695571,0.00019391,2]
[407768324,1772783440749,-950.32881626,0.00019391,2]
[407768325,1772783440758,-2000.0,0.00019416,2]
[407768326,1772783440767,-927.27566595,0.00019417,2]
[407768327,1772783440777,-151.0,0.00019446,2]
[407768328,1772783440786,-1100.0,0.00019452,7]
[407768329,1772783440795,-500.0,0.00019452,7]
[407768330,1772783440804,-200.0,0.00019454,2]
[407768331,1772783440814,-961.58486559,0.00019472,2]
[407768332,1772783440823,-154.34,0.0001949,2]
[407768333,1772783440832,-477.40619926,0.000195,2]
[407768334,1772783440842,-1067.65775048,0.00019502,2]
[407768335,1772783440852,-1092.80128094,0.00019502,2]
[407768336,1772783440861,-1085.46720323,0.00019502,2]
[407768337,1772783440871,-1097.31716589,0.00019502,2]
[407768338,1772783440880,-1062.93061776,0.00019502,2]
[407768339,1772783440889,-1166.83861329,0.00019502,2]
[407768340,1772783440899,-1000.0,0.00019521,2]
[407768341,1772783440908,-235.21838039,0.00019521,2]
[407768342,1772783440917,-1000.0,0.00019521,2]
[407768343,1772783440926,-1000.0,0.00019521,2]
[407768344,1772783440935,-1000.0,0.00019521,2]
[407768345,1772783440945,-449.5306254,0.00019521,2]
[407768346,1772783440954,-556.1229892,0.00019521,2]
[407768347,1772783440964,-500.0,0.00019521,2]
[407768348,1772783440973,-1000.0,0.00019521,2]
[407768349,1772783440982,-1000.0,0.00019525,2]
[407768350,1772783440992,-272.62944185,0.00019525,2]
[407768351,1772783441001,-181.08010149,0.00019525,2]
[407768352,1772783441011,-997.16350561,0.00019527,2]
[407768353,1772783441020,-151.0,0.00019557,2]
[407768354,1772783441029,-1258.974,0.0001956,2]
[407768355,1772783441038,-1000.0,0.00019568,2]
[407768356,1772783441047,-686.30743447,0.00019573,2]
[407768357,1772783441056,-751.96799956,0.000196,2]
[407768358,1772783441065,-725.2,0.00019627,2]
[407768359,1772783441075,-1254.695571,0.00019646,2]
[407768360,1772783441084,-950.32881626,0.00019646,2]
[407768361,1772783441094,-151.0,0.00019668,2]
[407768362,1772783441103,-847.0,0.0001968,2]
[407768363,1772783441114,-847.0,0.0001968,2]
[407768364,1772783441123,-188.0,0.0001968,2]
[407768365,1772783441132,-847.0,0.0001968,2]
[407768366,1772783441142,-1000.0,0.000197,2]
[407768367,1772783441151,-500.0,0.00019726,2]
[407768368,1772783441160,-495.0,0.00019751,2]
[407768369,1772783441171,-154.34,0.0001976,2]
[407768370,1772783441181,-153.26719895,0.00019761,2]
[407768371,1772783441190,-1000.0,0.00019773,2]
[407768372,1772783441201,-151.0,0.00019778,2]
[407768373,1772783441211,-571.0,0.00019786,5]
[407768374,1772783441220,-245.45,0.00019796,2]
[407768375,1772783441230,-515.53321207,0.00019799,2]
[407768376,1772783441240,-500.0,0.0001984,2]
[407768377,1772783441250,-1000.0,0.00019842,2]
[407768378,1772783441260,-2908.0,0.00019867,2]
[407768379,1772783441269,-2877.0,0.00019867,2]
[407768380,1772783441279,-5800.0,0.00019883,2]
[407768381,1772783441289,-151.0,0.00019889,2]
[407768382,1772783441299,-5800.0,0.00019892,2]
[407768383,1772783441308,-402.4146091,0.00019895,2]
[407768384,1772783441318,-1735.94399134,0.000199,2]
[407768385,1772783441328,-150.75856652,0.000199,8]
[407768386,1772783441339,-5800.0,0.000199,2]
[407768387,1772783441349,-12256.42,0.000199,2]
[407768388,1772783441360,-1254.695571,0.000199,2]
[407768389,1772783441370,-151.0,0.000199,2]
[407768390,1772783441380,-950.32881626,0.000199,2]
[407768391,1772783441389,-212.83527264,0.000199,2]
[407768392,1772783441398,-686.30743447,0.000199,2]
[407768393,1772783441409,-2310.06501584,0.000199,2]
[407768394,1772783441418,-184.45900468,0.000199,2]
[407768395,1772783441429,-2808.0,0.000199,2]
[407768396,1772783441440,-12419.92415092,0.000199,2]
[407768397,1772783441450,-152.0,0.00019931,14]
[407768398,1772783441460,-2500.0,0.00019964,2]
[407768399,1772783441470,-400.0,0.0001997,2]
[407768400,1772783441480,-500.0,0.00019973,2]
[407768401,1772783441490,-301.78790722,0.00019973,2]
[407768402,1772783441500,-500.0,0.00019973,2]
[407768403,1772783441510,-500.0,0.00019973,2]
[407768404,1772783441521,-500.0,0.00019973,2]
[407768405,1772783441530,-500.0,0.00019973,2]
[407768406,1772783441540,-500.0,0.00019973,2]
[407768407,1772783441550,-500.0,0.00019973,2]
[407768408,1772783441559,-500.0,0.00019973,2]
[407768409,1772783441569,-500.0,0.00019973,2]
[407768410,1772783441579,-500.0,0.00019973,2]
[407768411,1772783441588,-150.0,0.00019973,2]
[407768412,1772783441602,-500.0,0.00019973,2]
[407768413,1772783441611,-500.0,0.00019973,2]
[407768414,1772783441620,-864.0,0.0001998,2]
[407768415,1772783441630,-864.0,0.0001998,2]
[407768416,1772783441639,-864.0,0.0001998,2]
[407768417,1772783441648,-864.0,0.0001998,2]
[407768418,1772783441658,-864.0,0.0001998,2]
[407768419,1772783441667,-864.0,0.0001998,2]
[407768420,1772783441677,-864.0,0.0001998,2]
[407768421,1772783441686,-864.0,0.0001998,2]
[407768422,1772783441696,-864.0,0.0001998,2]
[407768423,1772783441705,-864.0,0.0001998,2]
[407768424,1772783441715,-864.0,0.0001998,2]
[407768425,1772783441725,-864.0,0.0001998,2]
[407768426,1772783441734,-864.0,0.0001998,2]
[407768427,1772783441743,-508.736,0.00019981,2]
[407768428,1772783441753,-3502.0,0.0001999,2]
[407768429,1772783441762,-751.844,0.0001999,2]
[407768430,1772783441772,-1341.0,0.0001999,2]
[407768431,1772783441789,-150.31,0.0001999,2]
[407768432,1772783441799,-1279.0,0.0001999,2]
[407768433,1772783441808,-3746.0,0.0001999,2]
[407768434,1772783441818,-177.95552898,0.0001999,2]
[407768435,1772783441827,-414.0,0.0001999,2]
[407768436,1772783441837,-151.0,0.00019997,2]
[407768437,1772783441846,-306.6537944,0.00019999,2]
[407768438,1772783441855,-300.0,0.00019999,2]
[407768439,1772783441865,-318.10498866,0.00019999,2]
[407768440,1772783441874,-300.0,0.00019999,2]
[407768441,1772783441884,-150.0,0.00019999,2]
[407768442,1772783441894,-183.31183954,0.00019999,2]
[407768443,1772783441903,-163662.44888838,0.0002,2]
[407768444,1772783442267,-2205.71495633,0.0002,2]
[407768445,1772783442279,-193232.25360112,0.0002,2]
[407768446,1772783442290,-151.0,0.0002,2]
[407768447,1772783442300,-200.0,0.0002,2]
[407768448,1772783442310,-302.3,0.0002,2]
[407768449,1772783442320,-151.0,0.0002,2]
[407768450,1772783442329,-150.0,0.0002,2]
[407768451,1772783442339,-2001.1457,0.0002,2]
[407768452,1772783442349,-10000.0,0.0002,2]
[407768453,1772783442359,-700.0,0.0002,5]
[407768454,1772783442368,-200.0,0.0002,2]
[407768455,1772783442378,-270.0,0.0002,2]
[407768456,1772783442392,-150.0,0.0002,2]
[407768457,1772783442402,-150.166,0.0002,2]
[407768458,1772783442411,-150.188,0.0002,2]
[407768459,1772783442421,-150.0,0.0002,2]
[407768460,1772783442705,-150.109,0.0002,2]
[407768461,1772783442715,-150.0,0.0002,2]
[407768463,1772783442725,-150.0,0.0002,2]
[407768464,1772783442735,-150.0,0.0002,2]
[407768465,1772783442745,-150.0,0.0002,2]
[407768466,1772783442755,-150.149,0.0002,2]
[407768467,1772783442765,-706.42643953,0.0002,2]
[407768468,1772783442775,-150.0,0.0002,2]
[407768469,1772783442784,-10441.37485007,0.0002,2]
[407768470,1772783442794,-150.0,0.0002,2]
[407768472,1772783442803,-1565.90123891,0.0002,2]
[407768474,1772783442812,-6111668.7526606,0.0002,2]
[407768476,1772783442832,-912.33756014,0.0002,2]
[407768477,1772783442848,-807.438462,0.0002,2]
[407768478,1772783442863,-37506.39625866,0.0002,2]
[407768483,1772783445818,-1210.51688858,0.0001947,2]
[407768484,1772783445828,-303.54919354,0.00019873,2]
[407768485,1772783445838,-2459.0,0.0001999,2]
[407768486,1772783445847,-598435.50569535,0.0002,2]
[407768487,1772783445859,-42060.24751007,0.0002,2]
[407768488,1772783445957,-15940.83003754,0.0002,2]
[407768491,1772783446318,-58050.10529949,0.0002,2]
[407768492,1772783464045,-500.0,0.00047114,120]
[407768493,1772783464071,-288.82,0.00047114,120]
[407768494,1772783464095,-5107.0,0.00047114,60]
[407768495,1772783464123,-1968.14567257,0.00047114,120]
[407768496,1772783464151,-5000.0,0.00047114,60]
[407768497,1772783464176,-5000.0,0.00047114,30]
[407768498,1772783464203,-5000.0,0.00047114,30]
[407768499,1772783464227,-195.76715083,0.00047114,90]
[407768500,1772783464252,-153.00302599,0.00047114,120]
[407768501,1772783464279,-158.74106616,0.00047114,30]
[407768502,1772783464304,-281.87134263,0.00047114,120]
[407768503,1772783464329,-2098.63027611,0.00047114,30]
[407768504,1772783464355,-282.74786965,0.00047114,30]
[407768505,1772783464380,-158.80144294,0.00047114,60]
[407768506,1772783464405,-2000.00378157,0.00047114,60]
[407768507,1772783464430,-211.28164,0.00047114,60]
[407768508,1772783464455,-1009.68095,0.00047114,60]
[407768509,1772783464481,-211.28164,0.00047114,60]
[407768510,1772783464506,-1009.68095,0.00047114,60]
[407768511,1772783464531,-1009.68095,0.00047114,60]
[407768512,1772783464557,-1009.68095,0.00047114,60]
[407768513,1772783464943,-1009.68095,0.00047114,60]
[407768514,1772783465004,-232.0,0.00047114,30]
[407768515,1772783465030,-2774.76364994,0.00047114,120]
[407768516,1772783465053,-200.0,0.00047114,120]
[407768517,1772783465077,-200.0,0.00047114,120]
[407768518,1772783465102,-200.0,0.00047114,120]
[407768519,1772783465128,-200.0,0.00047114,120]
[407768520,1772783465152,-200.0,0.00047114,120]
[407768521,1772783465177,-200.0,0.00047114,120]
[407768522,1772783465203,-200.0,0.00047114,120]
[407768523,1772783465228,-200.0,0.00047114,120]
[407768524,1772783465253,-200.0,0.00047114,120]
[407768525,1772783465277,-200.0,0.00047114,120]
[407768526,1772783465301,-200.0,0.00047114,120]
[407768527,1772783465325,-200.0,0.00047114,120]
[407768528,1772783465350,-200.0,0.00047114,120]
[407768529,1772783465374,-262.53504936,0.00047114,120]
[407768530,1772783465399,-200.0,0.00047114,120]
[407768531,1772783465423,-225.0,0.00047114,120]
[407768532,1772783465448,-800.0,0.00047114,31]
[407768533,1772783465474,-800.0,0.00047114,31]
[407768534,1772783465498,-800.0,0.00047114,31]
[407768535,1772783465521,-800.0,0.00047114,31]
[407768536,1772783465546,-800.0,0.00047114,31]
[407768537,1772783465570,-800.0,0.00047114,31]
[407768538,1772783465594,-800.0,0.00047114,31]
[407768539,1772783465618,-800.0,0.00047114,31]
[407768540,1772783465642,-800.0,0.00047114,31]
[407768541,1772783465666,-800.0,0.00047114,31]
[407768542,1772783465689,-800.0,0.00047114,31]
[407768543,1772783465713,-800.0,0.00047114,31]
[407768544,1772783465737,-800.0,0.00047114,31]
[407768545,1772783465761,-800.0,0.00047114,31]
[407768546,1772783465785,-800.0,0.00047114,31]
[407768547,1772783465809,-800.0,0.00047114,31]
[407768548,1772783465833,-800.0,0.00047114,31]
[407768549,1772783465858,-800.0,0.00047114,31]
[407768550,1772783465885,-800.0,0.00047114,31]
[407768551,1772783465910,-800.0,0.00047114,31]
[407768552,1772783465935,-800.0,0.00047114,31]
[407768553,1772783465960,-800.0,0.00047114,31]
[407768554,1772783465986,-800.0,0.00047114,31]
[407768555,1772783466010,-800.0,0.00047114,31]
[407768556,1772783466034,-800.0,0.00047114,31]
[407768557,1772783466058,-800.0,0.00047114,31]
[407768558,1772783466083,-800.0,0.00047114,31]
[407768559,1772783466108,-800.0,0.00047114,31]
[407768560,1772783466139,-800.0,0.00047114,31]
[407768561,1772783466165,-800.0,0.00047114,31]
[407768562,1772783466191,-800.0,0.00047114,31]
[407768563,1772783466219,-800.0,0.00047114,31]
[407768564,1772783466243,-800.0,0.00047114,31]
[407768565,1772783466268,-800.0,0.00047114,31]
[407768566,1772783466294,-800.0,0.00047114,31]
[407768567,1772783466319,-800.0,0.00047114,31]
[407768568,1772783466344,-800.0,0.00047114,31]
[407768569,1772783466370,-800.0,0.00047114,31]
[407768570,1772783466394,-800.0,0.00047114,31]
[407768571,1772783466418,-933.31374155,0.00047114,120]
[407768572,1772783466442,-170.47,0.00047114,120]
[407768573,1772783466468,-170.47,0.00047114,120]
[407768574,1772783466493,-170.47,0.00047114,120]
[407768575,1772783466518,-170.46,0.00047114,120]
[407768576,1772783466542,-800.0,0.00047114,31]
[407768577,1772783466566,-800.0,0.00047114,31]
[407768578,1772783466589,-800.0,0.00047114,31]
[407768579,1772783466613,-800.0,0.00047114,31]
[407768580,1772783466638,-800.0,0.00047114,31]
[407768581,1772783466662,-800.0,0.00047114,31]
[407768582,1772783466686,-800.0,0.00047114,31]
[407768583,1772783466710,-800.0,0.00047114,31]
[407768584,1772783466734,-800.0,0.00047114,31]
[407768585,1772783466757,-689484.99,0.00047114,45]
[407768586,1772783466781,-496.13,0.00047114,120]
[407768587,1772783466805,-97713.56,0.00047114,120]
[407768588,1772783466828,-561.0,0.00047114,120]
[407768589,1772783466852,-190.23267722,0.00047114,31]
[407768590,1772783466876,-1000.0,0.00047114,30]
[407768591,1772783466899,-954.13566195,0.00047114,30]
[407768592,1772783466923,-742.244534,0.00047114,30]
[407768593,1772783466947,-500.0,0.00047114,30]
[407768594,1772783466972,-5000.0,0.00047114,30]
[407768595,1772783466996,-5000.0,0.00047114,30]
[407768596,1772783467020,-5000.0,0.00047114,30]
[407768597,1772783467045,-5000.0,0.00047114,30]
[407768598,1772783467068,-5000.0,0.00047114,30]
[407768599,1772783467092,-5000.0,0.00047114,30]
[407768600,1772783467120,-5000.0,0.00047114,30]
[407768601,1772783467146,-5000.0,0.00047114,30]
[407768602,1772783467171,-625.0,0.00047114,30]
[407768603,1772783467196,-5000.0,0.00047114,120]
[407768604,1772783467226,-5000.0,0.00047114,120]
[407768605,1772783467250,-5000.0,0.00047114,120]
[407768606,1772783467274,-5000.0,0.00047114,120]
[407768607,1772783467299,-5000.0,0.00047114,120]
[407768608,1772783467322,-5000.0,0.00047114,120]
[407768609,1772783467347,-5000.0,0.00047114,120]
[407768610,1772783467372,-5000.0,0.00047114,120]
[407768611,1772783467398,-625.0,0.00047114,120]
[407768612,1772783467423,-5000.0,0.00047114,30]
[407768613,1772783467449,-151.0,0.00047114,30]
[407768614,1772783467476,-5000.0,0.00047114,120]
[407768615,1772783467715,-151.0,0.00047114,120]
[407768616,1772783467741,-824.0,0.00047114,30]
[407768617,1772783467766,-824.0,0.00047114,120]
[407768618,1772783467790,-1149.4939407,0.00047114,120]
[407768619,1772783467815,-1000.0,0.00047114,60]
[407768620,1772783467838,-1000.0,0.00047114,60]
[407768621,1772783467861,-1000.0,0.00047114,60]
[407768622,1772783467885,-1000.0,0.00047114,30]
[407768623,1772783467916,-216.0,0.00047114,30]
[407768624,1772783467938,-1000.0,0.00047114,120]
[407768625,1772783467962,-1000.0,0.00047114,60]
[407768626,1772783467985,-1000.0,0.00047114,60]
[407768627,1772783468014,-1000.0,0.00047114,30]
[407768628,1772783468053,-158.24144697,0.00047114,120]
[407768629,1772783468077,-1000.0,0.00047114,120]
[407768630,1772783468108,-1000.0,0.00047114,30]
[407768631,1772783468154,-1000.0,0.00047114,60]
[407768632,1772783468177,-1000.0,0.00047114,60]
[407768633,1772783468200,-1000.0,0.00047114,30]
[407768634,1772783468225,-1000.0,0.00047114,30]
[407768635,1772783468249,-1000.0,0.00047114,30]
[407768636,1772783468272,-611.42600917,0.00047114,120]
[407768637,1772783468298,-242.74992038,0.00047114,30]
[407768638,1772783468326,-1267.42843837,0.00047114,30]
[407768639,1772783468349,-330.74677733,0.00047114,30]
[407768640,1772783468372,-548.63180372,0.00047114,30]
[407768641,1772783468395,-410.19366111,0.00047114,30]
[407768642,1772783468419,-885.36279282,0.00047114,91]
[407768643,1772783468442,-1238.92645252,0.00047114,60]
[407768644,1772783468465,-945.04295945,0.00047114,30]
[407768645,1772783468490,-287.57797975,0.00047114,60]
[407768646,1772783468515,-317.62505185,0.00047114,30]
[407768647,1772783468541,-411.96911625,0.00047114,120]
[407768648,1772783468568,-1105.74996852,0.00047114,120]
[407768649,1772783468592,-1000.0,0.00047114,60]
[407768650,1772783468615,-587.45848219,0.00047114,120]
[407768651,1772783468639,-797.31283402,0.00047114,30]
[407768652,1772783468663,-684.3856134,0.00047114,120]
[407768653,1772783468694,-457.90427584,0.00047114,120]
[407768654,1772783468722,-1201.5638375,0.00047114,30]
[407768655,1772783468745,-206.5737246,0.00047114,120]
[407768656,1772783468769,-1705.43899674,0.00047114,30]
[407768657,1772783468792,-1000.0,0.00047114,30]
[407768658,1772783468833,-182.24743903,0.00047114,120]
[407768659,1772783468862,-458.54587925,0.00047114,30]
[407768660,1772783468885,-1083.44528483,0.00047114,120]
[407768661,1772783468911,-937.68501971,0.00047114,120]
[407768662,1772783468936,-723.34163272,0.00047114,120]
[407768663,1772783468962,-1091.42124678,0.00047114,120]
[407768664,1772783468985,-867.17816158,0.00047114,120]
[407768665,1772783469009,-1000.0,0.00047114,30]
[407768666,1772783469033,-726.94704515,0.00047114,120]
[407768667,1772783469057,-925.45505154,0.00047114,30]
[407768668,1772783469081,-718.66203346,0.00047114,30]
[407768669,1772783469104,-934.49982112,0.00047114,30]
[407768670,1772783469131,-179.44724035,0.00047114,120]
[407768671,1772783469155,-349.44890143,0.00047114,30]
[407768672,1772783469178,-1000.0,0.00047114,30]
[407768673,1772783469204,-622.77738667,0.00047114,120]
[407768674,1772783469228,-169.09203405,0.00047114,120]
[407768675,1772783469251,-1006.91387614,0.00047114,30]
[407768676,1772783469274,-1044.81430496,0.00047114,60]
[407768677,1772783469298,-378.23010099,0.00047114,120]
[407768678,1772783469323,-332.34675848,0.00047114,30]
[407768679,1772783469347,-223.45817794,0.00047114,30]
[407768680,1772783469371,-446.44302128,0.00047114,60]
[407768681,1772783469396,-1040.52690821,0.00047114,30]
[407768682,1772783469421,-821.89772126,0.00047114,120]
[407768683,1772783469445,-1000.0,0.00047114,60]
[407768684,1772783469469,-194.74564147,0.00047114,120]
[407768685,1772783469492,-644.90242873,0.00047114,120]
[407768686,1772783469516,-1032.45052356,0.00047114,120]
[407768687,1772783469541,-954.14874302,0.00047114,120]
[407768688,1772783469566,-378.10601128,0.00047114,30]
[407768689,1772783469593,-376.66962208,0.00047114,30]
[407768690,1772783469619,-506.09328698,0.00047114,120]
[407768691,1772783469642,-778.91834627,0.00047114,120]
[407768692,1772783469665,-715.45599753,0.00047114,30]
[407768693,1772783469689,-444.79291594,0.00047114,120]
[407768694,1772783469712,-565.95400507,0.00047114,120]
[407768695,1772783469738,-935.81805248,0.00047114,30]
[407768696,1772783469763,-575.6091107,0.00047114,120]
[407768697,1772783469788,-1224.27623742,0.00047114,60]
[407768698,1772783469812,-11686.26577273,0.00047114,30]
[407768699,1772783469836,-1095.27733435,0.00047114,30]
[407768700,1772783469863,-1178.1006998,0.00047114,120]
[407768701,1772783469892,-215.44971043,0.00047114,120]
[407768702,1772783469917,-993.38048264,0.00047114,120]
[407768703,1772783469943,-177.06172233,0.00047114,120]
[407768704,1772783469967,-549.76262998,0.00047114,120]
[407768705,1772783469991,-515.9700272,0.00047114,120]
[407768706,1772783470014,-258.39993013,0.00047114,120]
[407768707,1772783470037,-212.32668299,0.00047114,60]
[407768708,1772783470062,-471.22105673,0.00047114,30]
[407768709,1772783470086,-416.21936446,0.00047114,30]
[407768710,1772783470111,-997.0,0.00047114,30]
[407768711,1772783470139,-267.5913218,0.00047114,120]
[407768712,1772783470165,-255.61839294,0.00047114,30]
[407768713,1772783470190,-392.58339224,0.00047114,60]
[407768714,1772783470217,-759.49281471,0.00047114,30]
[407768715,1772783470242,-173.67381299,0.00047114,120]
[407768716,1772783470268,-418.6385145,0.00047114,120]
[407768717,1772783470292,-828.5336381,0.00047114,120]
[407768718,1772783470529,-768.15771535,0.00047114,120]
[407768719,1772783470555,-573.25861725,0.00047114,30]
[407768720,1772783470579,-956.13887698,0.00047114,30]
[407768721,1772783470604,-1259.61296074,0.00047114,30]
[407768722,1772783470630,-645.15760434,0.00047114,120]
[407768723,1772783470655,-1105.7406841,0.00047114,120]
[407768724,1772783470680,-239.75900336,0.00047114,120]
[407768725,1772783470703,-610.68811453,0.00047114,120]
[407768726,1772783470726,-270.33586756,0.00047114,120]
[407768727,1772783470749,-934.67261318,0.00047114,120]
[407768728,1772783470773,-215.29053162,0.00047114,66]
[407768729,1772783470797,-202.36673299,0.00047114,30]
[407768730,1772783470821,-249.78501517,0.00047114,120]
[407768731,1772783470844,-733.32078736,0.00047114,120]
[407768732,1772783470867,-927.34703139,0.00047114,30]
[407768733,1772783470891,-332.97711308,0.00047114,30]
[407768734,1772783470915,-393.06651871,0.00047114,30]
[407768735,1772783470939,-286.77168018,0.00047114,30]
[407768736,1772783470962,-414.06793454,0.00047114,30]
[407768737,1772783470986,-374.81751891,0.00047114,30]
[407768738,1772783471010,-835.16196336,0.00047114,120]
[407768739,1772783471035,-614.8136169,0.00047114,120]
[407768740,1772783471058,-570.5769805,0.00047114,120]
[407768741,1772783471083,-1430.89411726,0.00047114,120]
[407768742,1772783471107,-229.20040916,0.00047114,120]
[407768743,1772783471135,-855.82140058,0.00047114,30]
[407768744,1772783471159,-201.24771782,0.00047114,120]
[407768745,1772783471184,-756.0,0.00047114,120]
[407768746,1772783471210,-362.15148868,0.00047114,120]
[407768747,1772783471234,-1083.20049783,0.00047114,120]
[407768748,1772783471257,-523.15078504,0.00047114,120]
[407768749,1772783471280,-182.65702754,0.00047114,120]
[407768750,1772783471304,-845.69620044,0.00047114,120]
[407768751,1772783471327,-1204.2390202,0.00047114,30]
[407768752,1772783471350,-558.37643567,0.00047114,120]
[407768753,1772783471373,-586.99510199,0.00047114,120]
[407768754,1772783471396,-608.73066149,0.00047114,120]
[407768755,1772783471420,-1132.6850183,0.00047114,31]
[407768756,1772783471445,-214.5014829,0.00047114,30]
[407768757,1772783471469,-364.95950534,0.00047114,120]
[407768758,1772783471494,-1117.28630237,0.00047114,120]
[407768759,1772783471517,-1065.92912795,0.00047114,120]
[407768760,1772783471542,-198.97772812,0.00047114,120]
[407768761,1772783471575,-588.27013503,0.00047114,120]
[407768762,1772783471603,-722.29972918,0.00047114,30]
[407768763,1772783471627,-866.47611118,0.00047114,120]
[407768764,1772783471653,-269.10424463,0.00047114,120]
[407768765,1772783471677,-1121.21846045,0.00047114,30]
[407768766,1772783471701,-368.72694197,0.00047114,120]
[407768767,1772783471727,-594.17129442,0.00047114,120]
[407768768,1772783471752,-277.61731563,0.00047114,120]
[407768769,1772783471777,-487.43991534,0.00047114,60]
[407768770,1772783471802,-1109.709024,0.00047114,120]
[407768771,1772783471826,-431.50256824,0.00047114,120]
[407768772,1772783471852,-520.17864469,0.00047114,30]
[407768773,1772783471878,-483.29022504,0.00047114,120]
[407768774,1772783471905,-500.0,0.00047114,120]
[407768775,1772783471930,-499.62155481,0.00047114,30]
[407768776,1772783471955,-603.53113744,0.00047114,30]
[407768777,1772783471987,-802.77415049,0.00047114,120]
[407768778,1772783472015,-1103.31917432,0.00047114,120]
[407768779,1772783472041,-540.63255926,0.00047114,120]
[407768780,1772783472066,-585.50183128,0.00047114,120]
[407768781,1772783472092,-850.40504459,0.00047114,30]
[407768782,1772783472118,-176.66303022,0.00047114,30]
[407768783,1772783472145,-316.328397,0.00047114,120]
[407768784,1772783472170,-328.96714926,0.00047114,120]
[407768785,1772783472196,-703.54035827,0.00047114,120]
[407768786,1772783472221,-230.97263905,0.00047114,120]
[407768787,1772783472248,-202.46733789,0.00047114,120]
[407768788,1772783472274,-1000.0,0.00047114,30]
[407768789,1772783472299,-1547.11581541,0.00047114,30]
[407768790,1772783472326,-487.01520728,0.00047114,120]
[407768791,1772783472351,-157.49025095,0.00047114,120]
[407768792,1772783472376,-176.41786379,0.00047114,60]
[407768793,1772783472404,-200.0,0.00047114,120]
[407768794,1772783472431,-55479.76862444,0.00047114,60]
[407768795,1772783472457,-164.2,0.00047114,120]
[407768796,1772783472483,-7851427.26542749,0.00047114,30]
[407768797,1772783478667,456.6525529,0.000153,5]
[407768798,1772783478692,1815.3474471,0.000153,5]
[407768799,1772783488715,-9000000.0,0.00047114,30]
[407768800,1772783493028,506.0,0.00014,2]
[407768801,1772783504362,-9000000.0,0.00047114,30]
[407768802,1772783510666,-9000000.0,0.00047114,30]
[407768803,1772783518004,-9000000.0,0.00047114,30]
[407768804,1772783523369,-3415139.84255203,0.00047114,30]
[407768805,1772783523398,-2500.0,0.00047114,30]
[407768806,1772783523426,-2500.0,0.00047114,120]
[407768807,1772783523456,-2500.0,0.00047114,30]
[407768808,1772783523483,-2500.0,0.00047114,120]
[407768809,1772783523510,-2500.0,0.00047114,30]
[407768810,1772783523537,-2500.0,0.00047114,120]
[407768811,1772783523563,-2500.0,0.00047114,30]
[407768812,1772783523589,-2500.0,0.00047114,120]
[407768813,1772783523615,-2500.0,0.00047114,30]
[407768814,1772783523641,-2500.0,0.00047114,120]
[407768815,1772783523667,-2500.0,0.00047114,30]
[407768816,1772783523692,-2500.0,0.00047114,120]
[407768817,1772783523717,-2500.0,0.00047114,30]